fUST/lending_fUST_20250403
["ID","MTS","AMOUNT","RATE_DAILY","PERIOD"]
[357060748,1743673999513,476.41,0.00010959,2]
[357060749,1743674009985,397.0,0.00010959,2]
[357060750,1743674020460,609.73,0.00010959,2]
[357060751,1743674030957,740.51,0.00010959,2]
[357060752,1743674041408,1018.11,0.00010959,2]
[357060753,1743674051899,1230.08,0.00010959,2]
[357060754,1743674062618,1387.72,0.00010959,2]
[357060755,1743674073225,1491.62,0.00010959,2]
[357060756,1743674083712,1549.8,0.00010959,2]
[357060757,1743674094263,1291.5,0.00010959,2]
[357060758,1743674104785,451.73067263,0.00010959,2]
[357060759,1743674104818,1135.18932737,0.00010959,2]
[357060760,1743674115240,1322.43,0.00010959,2]
[357060761,1743674125967,1102.03,0.00010959,2]
[357060762,1743674136461,1508.97,0.00010959,2]
[357060763,1743674147143,1400.7,0.00010959,2]
[357060764,1743674157650,1430.83,0.00010959,2]
[357060765,1743674168141,1192.36,0.00010959,2]
[357060766,1743674178623,1103.35,0.00010959,2]
[357060767,1743674189109,1016.21,0.00010959,2]
[357060768,1743674199894,954.09,0.00010959,2]
[357060769,1743674210441,795.07,0.00010959,2]
[357060770,1743674220955,826.41,0.00010959,2]
[357060771,1743674231671,688.68,0.00010959,2]
[357060772,1743674242184,687.68,0.00010959,2]
[357060773,1743674252909,573.07,0.00010959,2]
[357060774,1743674263448,556.58,0.00010959,2]
[357060775,1743674273956,493.75,0.00010959,2]
[357060776,1743674284687,411.45,0.00010959,2]
[357060777,1743674295222,492.54,0.00010959,2]
[357060778,1743674306209,410.45,0.00010959,2]
[357060779,1743674317152,342.04,0.00010959,2]
[357060780,1743674327641,285.03,0.00010959,2]
[357060781,1743674338121,237.53,0.00010959,2]
[357060782,1743674349035,197.94,0.00010959,2]
[357060783,1743674359514,164.95,0.00010959,2]
[357060784,1743674370016,824.78,0.00010959,2]
[357060785,1743674406765,-259.0319249,0.00016263,2]
[357060786,1743674414217,-500.0,0.00016263,2]
[357060787,1743674415311,-880.5981,0.00016263,2]
[357060790,1743674554596,-44.19182487,0.00016263,2]
[357060791,1743674554619,-220.48026339,0.00016427,2]
[357060792,1743674558811,-304.15659091,0.00016427,2]
[357060793,1743674560491,-44.036485,0.00016666,2]
[357060794,1743674560513,-250.0,0.00016732,2]
[357060795,1743674560661,-205.963515,0.00017156,2]
[357060796,1743674561652,-500.0,0.00016263,2]
[357060797,1743674562244,-482.80942083,0.00016263,2]
[357060802,1743674720178,-300.0,0.00016256,2]
[357060803,1743674729278,-500.0,0.00016256,2]
[357060804,1743674731792,-576.3439,0.00016256,2]
[357060805,1743674748166,-200.0,0.00016093,2]
[357060812,1743674893347,-292.0614,0.00016093,2]
[357060813,1743674934232,-172.63844085,0.00015932,2]
[357060835,1743675032502,-2361.07083832,0.00015932,2]
[357060836,1743675032512,-294.0364852,0.0001623,2]
[357060837,1743675032521,-574.4775266,0.00016256,2]
[357060838,1743675032531,-393.818442,0.00017059,2]
[357060839,1743675032540,-299.25398475,0.00017155,2]
[357060840,1743675032549,-1149.30425938,0.00017155,2]
[357060841,1743675032558,-300.0,0.00017253,2]
[357060842,1743675032567,-500.0,0.00017253,2]
[357060843,1743675032577,-500.0,0.00017253,2]
[357060844,1743675032586,-500.0,0.00017254,2]
[357060845,1743675032595,-500.0,0.00017254,2]
[357060846,1743675032604,-280.46435595,0.00017254,2]
[357060847,1743675032614,-500.0,0.00017254,2]
[357060848,1743675032623,-177.4018621,0.00017254,2]
[357061153,1743675056088,-176.87057425,0.00017081,2]
[357061154,1743675130608,150.12,0.00010959,2]
[357061155,1743675141109,250.21,0.00010959,2]
[357061156,1743675151598,399.64,0.00010959,2]
[357061157,1743675162093,333.03,0.00010959,2]
[357061158,1743675172561,277.52,0.00010959,2]
[357061159,1743675183102,364.0,0.00010959,2]
[357061160,1743675193570,353.61,0.00010959,2]
[357061161,1743675204067,336.57,0.00010959,2]
[357061162,1743675214761,864.83,0.00010959,2]
[357061163,1743675216825,-152.9334917,0.00016454,2]
[357061164,1743675225349,720.69,0.00010959,2]
[357061165,1743675235883,1676.38,0.00010959,2]
[357061166,1743675238964,-164.9835011,0.0001629,2]
[357061167,1743675244047,-14.91870722,0.0001629,2]
[357061168,1743675244072,-172.00395721,0.00016454,2]
[357061169,1743675246414,1396.98,0.00010959,2]
[357061170,1743675255540,-186.92266443,0.0001629,2]
[357061171,1743675256969,1164.15,0.00010959,2]
[357061172,1743675267464,2142.15,0.00010959,2]
[357061173,1743675277926,1785.13,0.00010959,2]
[357061174,1743675288431,1487.6,0.00010959,2]
[357061175,1743675298899,1978.89,0.00010959,2]
[357061176,1743675309420,1865.27,0.00010959,2]
[357061177,1743675319908,1741.84,0.00010959,2]
[357061178,1743675330391,1607.74,0.00010959,2]
[357061179,1743675340908,1481.1,0.00010959,2]
[357061180,1743675351381,1234.25,0.00010959,2]
[357061181,1743675361883,1269.74,0.00010959,2]
[357061182,1743675372624,1160.99,0.00010959,2]
[357061183,1743675383202,1124.65,0.00010959,2]
[357061184,1743675393703,937.21,0.00010959,2]
[357061185,1743675404218,840.54,0.00010959,2]
[357061186,1743675414730,791.4,0.00010959,2]
[357061187,1743675425269,659.5,0.00010959,2]
[357061188,1743675435768,584.04,0.00010959,2]
[357061189,1743675446295,515.41,0.00010959,2]
[357061190,1743675457013,466.11,0.00010959,2]
[357061191,1743675467533,418.94,0.00010959,2]
[357061192,1743675478129,374.54,0.00010959,2]
[357061193,1743675488859,312.11,0.00010959,2]
[357061194,1743675499339,260.1,0.00010959,2]
[357061195,1743675509907,343.87,0.00010959,2]
[357061196,1743675520390,286.56,0.00010959,2]
[357061197,1743675530927,238.8,0.00010959,2]
[357061198,1743675541452,199.0,0.00010959,2]
[357061199,1743675552189,165.83,0.00010959,2]
[357061200,1743675563088,829.19,0.00010959,2]
[357061202,1743675608330,-260.9967,0.00016454,2]
[357061210,1743675810943,-231.07733557,0.00016127,2]
[357061211,1743675882441,911.75477048,0.00025,120]
[357061253,1743676232671,-211.84184271,0.00016354,2]
[357061254,1743676232683,-1624.57290079,0.00016454,2]
[357061255,1743676232693,-1728.97070627,0.00017055,2]
[357061256,1743676232703,-1005.64122701,0.00017152,2]
[357061257,1743676232713,-354.0,0.00017205,2]
[357061258,1743676232723,-200.0,0.00017245,2]
[357061259,1743676232733,-300.0,0.0001725,2]
[357061260,1743676232742,-500.0,0.00017251,2]
[357061261,1743676232753,-500.0,0.00017251,2]
[357061262,1743676232763,-500.0,0.00017251,2]
[357061263,1743676232772,-500.0,0.00017251,2]
[357061264,1743676232782,-500.0,0.00017251,2]
[357061265,1743676232790,-500.0,0.00017251,2]
[357061266,1743676232800,-513.20957592,0.00017251,2]
[357061267,1743676232810,-551.49,0.00017251,2]
[357061268,1743676232819,-500.0,0.00017251,2]
[357061269,1743676232829,-500.0,0.00017251,2]
[357061270,1743676232838,-541.96,0.00017251,2]
[357061271,1743676232848,-500.0,0.00017251,2]
[357061272,1743676232857,-500.0,0.00017251,2]
[357061273,1743676232866,-500.0,0.00017251,2]
[357061274,1743676232876,-500.0,0.00017251,2]
[357061275,1743676232885,-500.0,0.00017251,2]
[357061276,1743676232895,-500.0,0.00017251,2]
[357061277,1743676232904,-500.0,0.00017251,2]
[357061278,1743676232914,-500.0,0.00017251,2]
[357061279,1743676232925,-500.0,0.00017251,2]
[357061280,1743676232935,-500.0,0.00017251,2]
[357061281,1743676232944,-500.0,0.00017251,2]
[357061282,1743676232954,-500.0,0.00017251,2]
[357061283,1743676232964,-500.0,0.00017251,2]
[357061284,1743676232973,-500.0,0.00017251,2]
[357061285,1743676232983,-500.0,0.00017251,2]
[357061286,1743676232992,-474.76,0.00017251,2]
[357061287,1743676233002,-500.0,0.00017251,2]
[357061288,1743676233011,-500.0,0.00017251,2]
[357061289,1743676233021,-500.0,0.00017251,2]
[357061290,1743676233031,-500.0,0.00017251,2]
[357061291,1743676233041,-505.39,0.00017251,2]
[357061292,1743676233050,-356.39,0.00017251,2]
[357061293,1743676233061,-500.0,0.00017251,2]
[357061294,1743676233072,-314.16713859,0.00017251,2]
[357061295,1743676233082,-150.48385792,0.00017252,2]
[357061296,1743676233093,-500.0,0.00017252,2]
[357061297,1743676233103,-500.0,0.00017252,2]
[357061298,1743676233113,-531.91405567,0.00017252,2]
[357061299,1743676233123,-500.0,0.00017252,2]
[357061300,1743676233134,-500.0,0.00017252,2]
[357061301,1743676233144,-363.76,0.00017252,2]
[357061302,1743676233154,-522.20993414,0.00017252,2]
[357061303,1743676233163,-500.0,0.00017252,2]
[357061304,1743676233172,-510.42455062,0.00017252,2]
[357061305,1743676233182,-424.31657606,0.00017252,2]
[357061306,1743676233193,-240.15802241,0.00017252,2]
[357061307,1743676233202,-530.73381551,0.00017252,2]
[357061308,1743676233212,-523.53325729,0.00017252,2]
[357061309,1743676233223,-517.98712992,0.00017252,2]
[357061310,1743676233233,-515.63295342,0.00017252,2]
[357061311,1743676233244,-525.15960841,0.00017252,2]
[357061312,1743676233254,-516.0734001,0.00017252,2]
[357061313,1743676233265,-500.0,0.00017252,2]
[357061314,1743676233276,-500.0,0.00017252,2]
[357061315,1743676233286,-268.28,0.00017252,2]
[357061316,1743676233296,-516.26124257,0.00017252,2]
[357061317,1743676233306,-630.22,0.00017252,2]
[357061318,1743676233318,-500.0,0.00017252,2]
[357061319,1743676233332,-537.63261753,0.00017252,2]
[357061320,1743676233342,-500.0,0.00017252,2]
[357061321,1743676233352,-500.0,0.00017252,2]
[357061322,1743676233362,-500.0,0.00017252,2]
[357061323,1743676233372,-500.0,0.00017252,2]
[357061324,1743676233382,-500.0,0.00017252,2]
[357061325,1743676233392,-500.0,0.00017252,2]
[357061326,1743676233405,-500.0,0.00017252,2]
[357061327,1743676233415,-500.0,0.00017252,2]
[357061328,1743676233425,-500.0,0.00017252,2]
[357061329,1743676233435,-500.0,0.00017252,2]
[357061330,1743676233446,-500.0,0.00017252,2]
[357061331,1743676233456,-513.5752272,0.00017252,2]
[357061332,1743676233466,-604.03464595,0.00017252,2]
[357061333,1743676233476,-500.0,0.00017252,2]
[357061334,1743676233486,-517.9059894,0.00017252,2]
[357061335,1743676233496,-528.77050071,0.00017252,2]
[357061336,1743676233507,-500.0,0.00017252,2]
[357061337,1743676233516,-500.0,0.00017252,2]
[357061338,1743676233526,-500.45548925,0.00017252,2]
[357061339,1743676233536,-373.72170127,0.00017252,2]
[357061340,1743676233650,-126.27829873,0.00017252,2]
[357061341,1743676233660,-188.29,0.00017252,2]
[357061342,1743676233670,-44.14425136,0.00017252,2]
[357061360,1743676238671,-455.85574864,0.00017252,2]
[357061361,1743676238684,-33.38385358,0.00017252,2]
[357061392,1743676243641,-2465.80009632,0.00017252,2]
[357061394,1743676243799,-50435.84042938,0.00017252,2]
[357061458,1743676303706,304.46,0.00010959,2]
[357061461,1743676334675,300.0,0.00025,30]
[357061462,1743676375930,-186.9226645,0.00016382,2]
[357061463,1743676386092,460.82,0.00010959,2]
[357061464,1743676396579,384.02,0.00010959,2]
[357061465,1743676417604,494.58,0.00010959,2]
[357061466,1743676428125,557.61,0.00010959,2]
[357061467,1743676438726,585.89,0.00010959,2]
[357061468,1743676449089,194.08,0.00010959,2]
[357061469,1743676459588,253.32,0.00010959,2]
[357061470,1743676470308,211.1,0.00010959,2]
[357061471,1743676480772,341.82,0.00010959,2]
[357061472,1743676483127,10000.0,0.00025,30]
[357061473,1743676490145,10000.0,0.00025,30]
[357061474,1743676491241,358.14,0.00010959,2]
[357061475,1743676499530,10000.0,0.00025,30]
[357061476,1743676501988,298.45,0.00010959,2]
[357061477,1743676509058,10000.0,0.00025,30]
[357061478,1743676512472,379.65,0.00010959,2]
[357061479,1743676516081,10000.0,0.00025,30]
[357061480,1743676522410,10000.0,0.00025,30]
[357061481,1743676523122,365.97,0.00010959,2]
[357061482,1743676528145,10000.0,0.00025,30]
[357061483,1743676533492,304.98,0.00010959,2]
[357061484,1743676533966,10000.0,0.00025,30]
[357061485,1743676543990,372.99,0.00010959,2]
[357061486,1743676548233,828.0,0.00025,30]
[357061487,1743676554514,355.84,0.00010959,2]
[357061489,1743676565065,296.54,0.00010959,2]
[357061490,1743676575606,284.63,0.00010959,2]
[357061491,1743676586353,294.5,0.00010959,2]
[357061492,1743676596858,245.42,0.00010959,2]
[357061493,1743676607340,334.78,0.00010959,2]
[357061494,1743676617853,278.98,0.00010959,2]
[357061495,1743676628359,232.48,0.00010959,2]
[357061496,1743676638873,193.74,0.00010959,2]
[357061497,1743676649473,161.45,0.00010959,2]
[357061498,1743676659936,807.26,0.00010959,2]
[357061501,1743676711157,-283.06910415,0.00016252,2]
[357061502,1743676744040,-293.85457745,0.00016252,2]
[357061503,1743676750140,-228.36155915,0.00016252,2]
[357061504,1743676795074,-278.84325922,0.00016252,2]
[357061505,1743676806190,-353.32835595,0.00016252,2]
[357061506,1743676810706,-269.09674078,0.00016089,2]
[357061507,1743676815218,-170.01932539,0.00016089,2]
[357061508,1743676929968,202.64,0.00025,30]
[357061509,1743676997477,-152.27921964,0.00016089,3]
[357061510,1743677007091,-220.60635781,0.00016089,3]
[357061511,1743677022239,-151.0,0.00016089,3]
[357061515,1743677043915,-172.63844085,0.00016089,3]
[357061516,1743677104327,-191.90544578,0.00016089,3]
[357061517,1743677116962,-327.16947726,0.00016089,3]
[357061518,1743677117034,-6.93407172,0.00016249,2]
[357061520,1743677165549,-159.247357,0.00016249,2]
[357061522,1743677224258,-180.81848361,0.00016249,2]
[357061532,1743677237494,-175.1690347,0.00016087,2]
[357061535,1743677258826,-5.64944891,0.00016087,2]
[357061536,1743677258851,-119.18151639,0.00016249,2]
[357061537,1743677258873,-50.3380694,0.0001625,2]
[357061538,1743677337204,6179.02029153,0.00025,30]
[357061550,1743677424810,200.0,0.00025,30]
[357061566,1743677432540,-175.1690347,0.00015926,2]
[357061567,1743677432552,-9622.9207963,0.0001625,2]
[357061586,1743677437746,-9093.1328402,0.0001625,2]
[357061587,1743677437757,-202.13434078,0.00016252,2]
[357061588,1743677437770,-387.4062951,0.00016252,2]
[357061589,1743677437781,-500.0,0.00016438,2]
[357061590,1743677437793,-500.0,0.00016438,2]
[357061591,1743677437804,-500.0,0.00016438,2]
[357061592,1743677437817,-257.47774097,0.00016438,2]
[357061593,1743677437828,-353.87312502,0.00016438,2]
[357061594,1743677437839,-504.64176727,0.00016438,2]
[357061595,1743677437849,-529.08801199,0.00016438,2]
[357061597,1743677437860,-500.0,0.00016438,2]
[357061598,1743677437870,-419.23358052,0.00016438,2]
[357061599,1743677437881,-269.84180956,0.00016438,2]
[357061600,1743677437892,-524.13184251,0.00016438,2]
[357061601,1743677437903,-586.07,0.00016438,2]
[357061602,1743677437916,-514.07885877,0.00016438,2]
[357061603,1743677437927,-514.23255547,0.00016438,2]
[357061604,1743677437938,-512.62593263,0.00016438,2]
[357061605,1743677437949,-500.0,0.00016438,2]
[357061606,1743677437959,-508.51282291,0.00016438,2]
[357061607,1743677437970,-500.0,0.00016438,2]
[357061608,1743677437981,-423.97,0.00016438,2]
[357061609,1743677437996,-500.0,0.00016438,2]
[357061610,1743677438008,-395.07252702,0.00016438,2]
[357061611,1743677438019,-291.67237154,0.00016438,2]
[357061612,1743677438211,-500.0,0.00016438,2]
[357061613,1743677438225,-500.0,0.00016438,2]
[357061614,1743677438235,-500.0,0.00016438,2]
[357061615,1743677438245,-17266.74038116,0.00016438,2]
[357061616,1743677438255,-586.07,0.00016712,2]
[357061617,1743677438265,-500.0,0.00016712,2]
[357061618,1743677438275,-240.18884199,0.00016712,2]
[357061619,1743677438284,-500.0,0.00016712,2]
[357061620,1743677438294,-500.0,0.00016712,2]
[357061621,1743677438303,-586.07,0.00016986,2]
[357061622,1743677438313,-312.3,0.00016986,2]
[357061623,1743677438322,-500.0,0.00016986,2]
[357061624,1743677438331,-500.0,0.00016986,2]
[357061625,1743677438341,-1138.85918469,0.0001705,2]
[357061626,1743677438350,-500.0,0.0001715,2]
[357061627,1743677438359,-422.67699758,0.0001715,2]
[357061628,1743677438369,-500.0,0.0001715,2]
[357061629,1743677438379,-500.0,0.0001715,2]
[357061630,1743677438389,-500.0,0.0001715,2]
[357061631,1743677438398,-500.0,0.0001715,2]
[357061632,1743677438409,-348.76260142,0.0001715,2]
[357061633,1743677438419,-316.52917793,0.0001715,2]
[357061634,1743677438428,-500.0,0.0001715,2]
[357061635,1743677438438,-500.0,0.0001715,2]
[357061636,1743677438448,-646.67164405,0.0001715,2]
[357061637,1743677438458,-484.16501749,0.0001715,2]
[357061638,1743677438468,-500.0,0.0001715,2]
[357061639,1743677438478,-500.0,0.0001715,2]
[357061640,1743677438487,-500.0,0.0001715,2]
[357061641,1743677438496,-500.0,0.0001715,2]
[357061642,1743677438506,-500.0,0.0001715,2]
[357061643,1743677438515,-500.0,0.0001715,2]
[357061644,1743677438525,-500.0,0.0001715,2]
[357061645,1743677438534,-500.0,0.0001715,2]
[357061646,1743677438543,-500.0,0.0001715,2]
[357061647,1743677438553,-500.0,0.0001715,2]
[357061648,1743677438562,-127.53555339,0.0001715,2]
[357061676,1743677442978,-175.1690347,0.00016088,3]
[357061677,1743677442987,-418.26862322,0.0001715,2]
[357061678,1743677442997,-115.81532992,0.0001715,2]
[357061679,1743677443009,-91.79868787,0.0001715,2]
[357061680,1743677443019,-372.46444661,0.0001715,2]
[357061681,1743677443029,-500.0,0.0001715,2]
[357061683,1743677443038,-180.14,0.0001715,2]
[357061685,1743677443048,-500.0,0.0001715,2]
[357061687,1743677443058,-500.0,0.0001715,2]
[357061689,1743677443067,-500.0,0.0001715,2]
[357061691,1743677443077,-500.0,0.0001715,2]
[357061693,1743677443086,-500.0,0.0001715,2]
[357061694,1743677443095,-500.0,0.0001715,2]
[357061695,1743677443105,-500.0,0.0001715,2]
[357061696,1743677443114,-500.0,0.0001715,2]
[357061697,1743677443123,-500.0,0.0001715,2]
[357061698,1743677443132,-500.0,0.0001715,2]
[357061699,1743677443141,-500.0,0.0001715,2]
[357061700,1743677443151,-151.0,0.0001715,2]
[357061701,1743677443161,-500.0,0.0001715,2]
[357061702,1743677443170,-151.0,0.0001715,2]
[357061703,1743677443179,-151.0,0.0001715,2]
[357061704,1743677443189,-500.0,0.0001715,2]
[357061705,1743677443198,-654.99,0.0001715,2]
[357061706,1743677443207,-151.0,0.0001715,2]
[357061707,1743677443217,-151.0,0.0001715,2]
[357061708,1743677443226,-500.0,0.0001715,2]
[357061709,1743677443235,-12100.74641285,0.00017151,2]
[357061773,1743677512003,715.87,0.00010959,2]
[357061774,1743677532764,326.88,0.00010959,2]
[357061775,1743677543286,272.4,0.00010959,2]
[357061776,1743677553801,485.22,0.00010959,2]
[357061777,1743677564392,404.35,0.00010959,2]
[357061778,1743677574893,445.33,0.00010959,2]
[357061779,1743677585373,412.16,0.00010959,2]
[357061780,1743677595887,343.47,0.00010959,2]
[357061781,1743677606644,782.27,0.00010959,2]
[357061782,1743677627410,361.11,0.00010959,2]
[357061783,1743677637940,551.7,0.00010959,2]
[357061784,1743677648469,208.98,0.00010959,2]
[357061785,1743677669272,174.15,0.00010959,2]
[357061786,1743677690545,870.75,0.00010959,2]
[357061791,1743678019837,201.91504236,0.00010959,2]
[357061792,1743678019860,141.14495764,0.00010959,2]
[357061793,1743678164340,287.45,0.00010959,2]
[357061794,1743678364186,279.12,0.00025,30]
[357061821,1743678632073,-197.48803699,0.00015,2]
[357061822,1743678632084,-334.103549,0.00015308,2]
[357061823,1743678632093,-1799.4737994,0.00015353,2]
[357061824,1743678632107,-412.5118036,0.00015712,2]
[357061825,1743678632116,-316.691919,0.00015999,2]
[357061826,1743678632126,-1357.89718131,0.00016338,2]
[357061827,1743678632138,-520.87649413,0.00016428,2]
[357061828,1743678632147,-292.78803625,0.00016436,2]
[357061829,1743678632156,-500.0,0.00016436,2]
[357061830,1743678632166,-500.0,0.00016436,2]
[357061831,1743678632178,-183.23684233,0.00016436,2]
[357061832,1743678632188,-500.0,0.00016436,2]
[357061833,1743678632198,-500.0,0.00016436,2]
[357061834,1743678632207,-500.0,0.00016436,2]
[357061835,1743678632217,-566.2131351,0.00016436,2]
[357061836,1743678632227,-1105.12021067,0.00016437,2]
[357061837,1743678632236,-25841.59760131,0.00016437,2]
[357061850,1743678637878,-23592.26300311,0.00016437,2]
[357061867,1743678641298,-13980.00000995,0.00016437,2]
[357061878,1743678643087,-848.0000016,0.00016437,2]
[357061888,1743678646024,-9893.17252225,0.00016437,2]
[357061889,1743678646132,-610.51176991,0.00016437,2]
[357061890,1743678710497,-250.0,0.00015609,2]
[357061891,1743678716743,-209.225629,0.00015609,2]
[357061892,1743678716766,-40.774371,0.00016273,2]
[357061893,1743678723831,-111.05220806,0.00016273,2]
[357061894,1743678723854,-71.33073896,0.00016427,2]
[357061895,1743678737599,-151.0,0.00016427,2]
[357061896,1743678738707,-179.63187497,0.00016427,2]
[357061897,1743678740618,727.37,0.00010959,2]
[357061898,1743678752346,-171.35,0.00016263,2]
[357061899,1743678761447,201.86,0.00010959,2]
[357061900,1743678771953,168.22,0.00010959,2]
[357061901,1743678782457,841.11,0.00010959,2]
[357061902,1743678792963,238.01,0.00010959,2]
[357061903,1743678803712,198.34,0.00010959,2]
[357061904,1743678814248,165.28,0.00010959,2]
[357061905,1743678816345,-151.45123136,0.00016263,2]
[357061906,1743678822582,-7.83064361,0.00016263,2]
[357061907,1743678822607,-145.11760559,0.00016427,2]
[357061908,1743678824743,345.58,0.00010959,2]
[357061909,1743678832529,-152.9334917,0.00016263,2]
[357061910,1743678835279,287.98,0.00010959,2]
[357061911,1743678846008,239.99,0.00010959,2]
[357061912,1743678856773,199.99,0.00010959,2]
[357061913,1743678867287,166.66,0.00010959,2]
[357061914,1743678878014,833.3,0.00010959,2]
[357061915,1743678878614,-171.3647575,0.00016263,2]
[357061916,1743678878639,-49.11550589,0.00016427,2]
[357061917,1743678912195,-151.45123136,0.00016427,2]
[357061918,1743678917794,-60.46311882,0.00016427,2]
[357061919,1743678917816,-111.54083839,0.00016437,2]
[357061920,1743679013637,-304.15659091,0.00015515,2]
[357061926,1743679122855,-30.80330859,0.00015515,2]
[357061927,1743679122879,-136.80316385,0.00016337,2]
[357061928,1743679136130,285.5,0.00010959,2]
[357061929,1743679136587,-164.9835011,0.00015447,2]
[357061930,1743679146630,237.92,0.00010959,2]
[357061931,1743679157358,198.26,0.00010959,2]
[357061932,1743679167927,165.22,0.00010959,2]
[357061933,1743679178642,165.22,0.00010959,2]
[357061934,1743679189352,660.91,0.00010959,2]
[357061935,1743679203096,293.8676414,0.000138,2]
[357061936,1743679203707,-164.9835011,0.00015292,2]
[357061937,1743679203732,-17.3994459,0.00015447,2]
[357061938,1743679443792,-260.9967,0.00015561,2]
[357061953,1743679658763,-186.92266443,0.00015438,2]
[357061954,1743679666014,-186.92266443,0.00015283,2]
[357061955,1743679666039,-63.07733557,0.00015438,2]
[357061956,1743679666073,-27.17788012,0.00015438,2]
[357061957,1743679684082,-268.0,0.00015438,2]
[357061959,1743679694779,-268.0,0.00015283,2]
[357061960,1743679694805,-165.99634864,0.00015437,2]
[357061961,1743679705727,-259.0319249,0.00015283,2]
[357061967,1743679803083,277.17788012,0.00013,2]
[357062010,1743679843305,-174.96442374,0.00015283,2]
[357062011,1743679843317,-196.73557626,0.00015437,2]
[357062012,1743679844187,-225.53376751,0.00015437,2]
[357062080,1743679846441,-393.06862546,0.00015437,2]
[357062081,1743679846454,-363.16040193,0.00015437,2]
[357062082,1743679846464,-59.43493488,0.00015438,2]
[357062083,1743679846477,-63.9407489,0.00015561,2]
[357062084,1743679846487,-1175.44396994,0.00016337,2]
[357062085,1743679846496,-204.95162538,0.00016436,2]
[357062086,1743679846506,-300.0,0.00016436,2]
[357062087,1743679846517,-54088.81060473,0.00016437,2]
[357062088,1743679852700,-200.2416205,0.00016273,2]
[357062089,1743679898658,370.98,0.00010959,2]
[357062090,1743679930064,566.77,0.00010959,2]
[357062091,1743679940822,214.69,0.00010959,2]
[357062092,1743679978481,-196.2234246,0.00015438,2]
[357062093,1743679982127,178.91,0.00010959,2]
[357062094,1743679993018,894.55,0.00010959,2]
[357062095,1743680039471,-303.7765754,0.0001611,2]
[357062096,1743680043555,-161.37406149,0.0001611,2]
[357062097,1743680052266,-19.41505552,0.0001611,2]
[357062098,1743680052294,-238.08982241,0.00016337,2]
[357062099,1743680067206,-182.36224909,0.00015949,2]
[357062100,1743680071941,-317.63775091,0.00015949,2]
[357062101,1743680071972,-89.06156927,0.00016337,2]
[357062102,1743680077330,-230.15819044,0.00016174,2]
[357062107,1743680184139,-186.90510313,0.00016174,2]
[357062108,1743680198533,-880.5981,0.00015436,2]
[357062109,1743680198578,838.744,0.00025,30]
[357062110,1743680218149,-200.0,0.00016436,10]
[357062111,1743680218172,-100.0,0.00016436,10]
[357062115,1743680244758,-300.0,0.00015435,2]
[357062116,1743680244781,-1950.33605557,0.00015436,2]
[357062117,1743680262119,-500.0,0.00015282,2]
[357062118,1743680267247,-192.1327515,0.0001522,2]
[357062120,1743680276818,-57.8672485,0.0001522,2]
[357062121,1743680276841,-93.1327515,0.00015282,2]
[357062122,1743680279413,-151.0,0.00015282,2]
[357062123,1743680280494,-560.78904443,0.00015282,2]
[357062124,1743680283483,-300.0,0.00015282,2]
[357062125,1743680286523,-182.80942083,0.00015282,2]